[Event "Titled Tuesday Blitz March 28 Early 2023"]
[White "Pasti, Aron"]
[Black "mjelcic"]
[WhiteFideId "785857"]
[WhiteElo "2173"]
[BlackElo "2239"]
[Result "0-1"]
[Round "09"]
[TimeControl "180+2"]
[Date "2023.03.28"]
[WhiteClock "0:00:11"]
[BlackClock "0:00:19"]

1. e4 {[%clk 0:03:00]}  c5 {[%clk 0:02:30]} 2. d4 {[%clk 0:02:59]}  cxd4 {[%clk 0:02:25]} 3. c3 {[%clk 0:02:59]}  g6 {[%clk 0:02:17]} 4. cxd4 {[%clk 0:02:59]}  Bg7 {[%clk 0:02:08]} 5. Nc3 {[%clk 0:03:00]}  d6 {[%clk 0:01:57]} 6. Nf3 {[%clk 0:03:00]}  Nc6 {[%clk 0:01:49]} 7. Bg5 {[%clk 0:03:01]}  Nf6 {[%clk 0:01:30]} 8. Bc4 {[%clk 0:03:00]}  O-O {[%clk 0:01:24]} 9. O-O {[%clk 0:02:55]}  Bg4 {[%clk 0:01:04]} 10. d5 {[%clk 0:02:48]}  Ne5 {[%clk 0:01:04]} 11. Be2 {[%clk 0:02:48]}  Bxf3 {[%clk 0:01:01]} 12. Bxf3 {[%clk 0:02:49]}  Qb6 {[%clk 0:01:01]} 13. Rb1 {[%clk 0:02:43]}  Nxf3+ {[%clk 0:01:01]} 14. Qxf3 {[%clk 0:02:44]}  Rfc8 {[%clk 0:01:01]} 15. Rfe1 {[%clk 0:02:42]}  Rc7 {[%clk 0:00:52]} 16. Be3 {[%clk 0:02:41]}  Qa5 {[%clk 0:00:52]} 17. Bd4 {[%clk 0:02:38]}  Rac8 {[%clk 0:00:48]} 18. Qe3 {[%clk 0:02:36]}  Nd7 {[%clk 0:00:47]} 19. Bxg7 {[%clk 0:02:32]}  Kxg7 {[%clk 0:00:47]} 20. Qd4+ {[%clk 0:02:31]}  Nf6 {[%clk 0:00:48]} 21. Rbc1 {[%clk 0:02:26]}  Rc4 {[%clk 0:00:47]} 22. Qd3 {[%clk 0:02:23]}  Qb4 {[%clk 0:00:47]} 23. Rc2 {[%clk 0:02:15]}  Nxe4 {[%clk 0:00:37]} 24. Rec1 {[%clk 0:01:55]}  Nxc3 {[%clk 0:00:36]} 25. bxc3 {[%clk 0:01:54]}  Qc5 {[%clk 0:00:36]} 26. h3 {[%clk 0:01:50]}  Rc7 {[%clk 0:00:36]} 27. Qf3 {[%clk 0:01:41]}  b5 {[%clk 0:00:34]} 28. a3 {[%clk 0:01:40]}  a5 {[%clk 0:00:34]} 29. Qe2 {[%clk 0:01:16]}  Qxd5 {[%clk 0:00:28]} 30. Rd2 {[%clk 0:01:10]}  Qe5 {[%clk 0:00:26]} 31. Qxe5+ {[%clk 0:01:04]}  dxe5 {[%clk 0:00:27]} 32. Rd5 {[%clk 0:01:04]}  R4c5 {[%clk 0:00:27]} 33. Rcd1 {[%clk 0:01:02]}  e6 {[%clk 0:00:27]} 34. Rxc5 {[%clk 0:00:56]}  Rxc5 {[%clk 0:00:28]} 35. Rd3 {[%clk 0:00:56]}  Kf6 {[%clk 0:00:28]} 36. Kf1 {[%clk 0:00:56]}  e4 {[%clk 0:00:29]} 37. Re3 {[%clk 0:00:56]}  Rc4 {[%clk 0:00:29]} 38. Ke2 {[%clk 0:00:55]}  a4 {[%clk 0:00:29]} 39. Kd2 {[%clk 0:00:54]}  Ke7 {[%clk 0:00:30]} 40. Rg3 {[%clk 0:00:48]}  f5 {[%clk 0:00:30]} 41. Re3 {[%clk 0:00:44]}  f4 {[%clk 0:00:28]} 42. Re1 {[%clk 0:00:44]}  Kd6 {[%clk 0:00:26]} 43. Rb1 {[%clk 0:00:44]}  Rc5 {[%clk 0:00:25]} 44. Rb4 {[%clk 0:00:43]}  Ke5 {[%clk 0:00:25]} 45. f3 {[%clk 0:00:38]}  exf3 {[%clk 0:00:19]} 46. gxf3 {[%clk 0:00:39]}  Kf5 {[%clk 0:00:19]} 47. Kd3 {[%clk 0:00:39]}  e5 {[%clk 0:00:19]} 48. c4 {[%clk 0:00:21]}  bxc4+ {[%clk 0:00:19]} 49. Kc3 {[%clk 0:00:21]}  e4 {[%clk 0:00:19]} 50. fxe4+ {[%clk 0:00:20]}  Kxe4 {[%clk 0:00:20]} 51. Rxa4 {[%clk 0:00:21]}  f3 {[%clk 0:00:20]} 52. Ra8 {[%clk 0:00:21]}  f2 {[%clk 0:00:19]} 53. Re8+ {[%clk 0:00:22]}  Kf3 {[%clk 0:00:19]} 54. Rf8+ {[%clk 0:00:20]}  Kg2 {[%clk 0:00:19]} 55. Kb4 {[%clk 0:00:17]}  Rc7 {[%clk 0:00:19]} 56. a4 {[%clk 0:00:11]}  c3 {[%clk 0:00:19]} 57. a5 {[%clk 0:00:11]}  c2 {[%clk 0:00:19]} 0-1


[Site "https://www.chess.com"]

[Event "Titled Tuesday Blitz March 28 Early 2023"]
[White "Quirke, Jeffrey"]
[Black "Senft, Sean"]
[WhiteFideId "2013029"]
[BlackFideId "2044960"]
[WhiteElo "2237"]
[BlackElo "1989"]
[Result "0-1"]
[Round "09"]
[TimeControl "180+2"]
[Date "2023.03.28"]
[WhiteClock "0:00:09"]
[BlackClock "0:00:21"]

1. e4 {[%clk 0:02:54]}  e5 {[%clk 0:02:58]} 2. Nf3 {[%clk 0:02:53]}  Nc6 {[%clk 0:02:58]} 3. Bb5 {[%clk 0:02:53]}  Nf6 {[%clk 0:02:58]} 4. d3 {[%clk 0:02:52]}  Bc5 {[%clk 0:02:58]} 5. O-O {[%clk 0:02:48]}  O-O {[%clk 0:02:58]} 6. c3 {[%clk 0:02:46]}  d6 {[%clk 0:02:58]} 7. h3 {[%clk 0:02:46]}  a6 {[%clk 0:02:58]} 8. Ba4 {[%clk 0:02:46]}  Re8 {[%clk 0:02:47]} 9. Bg5 {[%clk 0:02:38]}  Ba7 {[%clk 0:02:45]} 10. Nbd2 {[%clk 0:02:35]}  Be6 {[%clk 0:02:44]} 11. Re1 {[%clk 0:02:28]}  b5 {[%clk 0:02:45]} 12. Bc2 {[%clk 0:02:27]}  Ne7 {[%clk 0:02:45]} 13. Bxf6 {[%clk 0:02:26]}  gxf6 {[%clk 0:02:45]} 14. Nf1 {[%clk 0:02:24]}  f5 {[%clk 0:02:43]} 15. exf5 {[%clk 0:02:23]}  Bxf5 {[%clk 0:02:41]} 16. d4 {[%clk 0:02:14]}  Bxc2 {[%clk 0:02:40]} 17. Qxc2 {[%clk 0:02:15]}  Ng6 {[%clk 0:02:39]} 18. Ng3 {[%clk 0:02:07]}  exd4 {[%clk 0:02:33]} 19. Qf5 {[%clk 0:02:00]}  dxc3 {[%clk 0:02:16]} 20. bxc3 {[%clk 0:01:59]}  h6 {[%clk 0:01:55]} 21. Nh5 {[%clk 0:01:57]}  Rxe1+ {[%clk 0:01:49]} 22. Rxe1 {[%clk 0:01:56]}  Qf8 {[%clk 0:01:45]} 23. Nf6+ {[%clk 0:01:46]}  Kg7 {[%clk 0:01:41]} 24. h4 {[%clk 0:01:40]}  Qd8 {[%clk 0:01:26]} 25. Nh5+ {[%clk 0:01:29]}  Kf8 {[%clk 0:01:15]} 26. Re6 {[%clk 0:00:49]}  Nxh4 {[%clk 0:01:09]} 27. Nxh4 {[%clk 0:00:49]}  Qxh4 {[%clk 0:01:09]} 28. Rf6 {[%clk 0:00:49]}  Qxf2+ {[%clk 0:00:36]} 29. Qxf2 {[%clk 0:00:48]}  Bxf2+ {[%clk 0:00:37]} 30. Kxf2 {[%clk 0:00:44]}  Re8 {[%clk 0:00:35]} 31. Rxh6 {[%clk 0:00:43]}  Re4 {[%clk 0:00:32]} 32. Nf6 {[%clk 0:00:32]}  Ra4 {[%clk 0:00:30]} 33. g4 {[%clk 0:00:19]}  Rxa2+ {[%clk 0:00:29]} 34. Ke3 {[%clk 0:00:18]}  a5 {[%clk 0:00:23]} 35. g5 {[%clk 0:00:17]}  d5 {[%clk 0:00:06]} 36. Kd4 {[%clk 0:00:16]}  Ke7 {[%clk 0:00:04]} 37. Rh8 {[%clk 0:00:15]}  Rd2+ {[%clk 0:00:04]} 38. Kc5 {[%clk 0:00:14]}  Ke6 {[%clk 0:00:03]} 39. Re8+ {[%clk 0:00:09]}  Kf5 {[%clk 0:00:03]} 40. Nxd5 {[%clk 0:00:09]}  Kxg5 {[%clk 0:00:03]} 41. Nxc7 {[%clk 0:00:08]}  Rc2 {[%clk 0:00:03]} 42. Nd5 {[%clk 0:00:07]}  b4 {[%clk 0:00:04]} 43. Ra8 {[%clk 0:00:04]}  bxc3 {[%clk 0:00:04]} 44. Rxa5 {[%clk 0:00:04]}  f5 {[%clk 0:00:05]} 45. Ra3 {[%clk 0:00:03]}  f4 {[%clk 0:00:05]} 46. Rxc3 {[%clk 0:00:03]}  Ra2 {[%clk 0:00:04]} 47. Nxf4 {[%clk 0:00:02]}  Kxf4 {[%clk 0:00:04]} 48. Rc4+ {[%clk 0:00:02]}  Ke5 {[%clk 0:00:05]} 49. Kb5 {[%clk 0:00:02]}  Rh2 {[%clk 0:00:05]} 50. Rc3 {[%clk 0:00:02]}  Kd4 {[%clk 0:00:06]} 51. Rc1 {[%clk 0:00:02]}  Rh8 {[%clk 0:00:06]} 52. Kb4 {[%clk 0:00:02]}  Rb8+ {[%clk 0:00:06]} 53. Ka3 {[%clk 0:00:03]}  Kd3 {[%clk 0:00:07]} 54. Ka4 {[%clk 0:00:03]}  Kd2 {[%clk 0:00:07]} 55. Rc6 {[%clk 0:00:03]}  Kd3 {[%clk 0:00:08]} 56. Rc7 {[%clk 0:00:04]}  Rb1 {[%clk 0:00:08]} 57. Ka5 {[%clk 0:00:04]}  Kd4 {[%clk 0:00:09]} 58. Ka4 {[%clk 0:00:04]}  Kd5 {[%clk 0:00:09]} 59. Ka3 {[%clk 0:00:05]}  Kd6 {[%clk 0:00:10]} 60. Rc2 {[%clk 0:00:05]}  Rb8 {[%clk 0:00:11]} 61. Ka4 {[%clk 0:00:05]}  Ra8+ {[%clk 0:00:12]} 62. Kb4 {[%clk 0:00:05]}  Rb8+ {[%clk 0:00:13]} 63. Ka4 {[%clk 0:00:05]}  Kd5 {[%clk 0:00:13]} 64. Ka3 {[%clk 0:00:04]}  Rb5 {[%clk 0:00:13]} 65. Ka4 {[%clk 0:00:05]}  Rb8 {[%clk 0:00:13]} 66. Ka5 {[%clk 0:00:05]}  Rh8 {[%clk 0:00:14]} 67. Ka4 {[%clk 0:00:05]}  Kd4 {[%clk 0:00:14]} 68. Ka5 {[%clk 0:00:05]}  Kd3 {[%clk 0:00:15]} 69. Rc7 {[%clk 0:00:05]}  Rh1 {[%clk 0:00:15]} 70. Ka4 {[%clk 0:00:05]}  Ra1+ {[%clk 0:00:15]} 71. Kb4 {[%clk 0:00:06]}  Ra2 {[%clk 0:00:16]} 72. Kb3 {[%clk 0:00:06]}  Ra8 {[%clk 0:00:16]} 73. Rd7+ {[%clk 0:00:06]}  Ke4 {[%clk 0:00:16]} 74. Kb4 {[%clk 0:00:06]}  Rb8+ {[%clk 0:00:16]} 75. Kc4 {[%clk 0:00:06]}  Rc8+ {[%clk 0:00:16]} 76. Kb4 {[%clk 0:00:07]}  Rh8 {[%clk 0:00:16]} 77. Kc4 {[%clk 0:00:07]}  Rh1 {[%clk 0:00:15]} 78. Kb4 {[%clk 0:00:07]}  Kf5 {[%clk 0:00:16]} 79. Kc4 {[%clk 0:00:07]}  Ke6 {[%clk 0:00:16]} 80. Rd2 {[%clk 0:00:07]}  Rc1+ {[%clk 0:00:17]} 81. Kb4 {[%clk 0:00:07]}  Ke5 {[%clk 0:00:17]} 82. Kb5 {[%clk 0:00:07]}  Rc8 {[%clk 0:00:18]} 83. Kb4 {[%clk 0:00:08]}  Rb8+ {[%clk 0:00:18]} 84. Kc4 {[%clk 0:00:08]}  Ra8 {[%clk 0:00:19]} 85. Kb4 {[%clk 0:00:08]}  Ra7 {[%clk 0:00:19]} 86. Kc4 {[%clk 0:00:08]}  Ke6 {[%clk 0:00:19]} 87. Kb4 {[%clk 0:00:09]}  Rb7+ {[%clk 0:00:20]} 88. Kc4 {[%clk 0:00:09]}  Rd7 {[%clk 0:00:20]} 89. Kb4 {[%clk 0:00:09]}  Rxd2 {[%clk 0:00:21]} 0-1


[Site "https://www.chess.com"]

[Event "Titled Tuesday Blitz March 28 Early 2023"]
[White "Melikhov, Evgeny V."]
[Black "Fabris, Alberto"]
[WhiteFideId "4122046"]
[BlackFideId "801348"]
[WhiteElo "2158"]
[BlackElo "2211"]
[Result "1-0"]
[Round "09"]
[TimeControl "180+2"]
[Date "2023.03.28"]
[WhiteClock "0:00:25"]
[BlackClock "0:00:03"]

1. d4 {[%clk 0:03:00]}  Nf6 {[%clk 0:02:59]} 2. c4 {[%clk 0:03:01]}  e6 {[%clk 0:02:59]} 3. Nc3 {[%clk 0:03:01]}  Bb4 {[%clk 0:02:59]} 4. Qc2 {[%clk 0:03:01]}  O-O {[%clk 0:02:59]} 5. e4 {[%clk 0:03:01]}  d5 {[%clk 0:02:57]} 6. e5 {[%clk 0:03:02]}  Ne4 {[%clk 0:02:58]} 7. Bd3 {[%clk 0:03:01]}  c5 {[%clk 0:02:57]} 8. Nf3 {[%clk 0:03:01]}  cxd4 {[%clk 0:02:54]} 9. Nxd4 {[%clk 0:03:01]}  Bxc3+ {[%clk 0:02:48]} 10. bxc3 {[%clk 0:03:01]}  Nc6 {[%clk 0:02:47]} 11. Bxe4 {[%clk 0:02:48]}  dxe4 {[%clk 0:02:44]} 12. Qxe4 {[%clk 0:02:48]}  Qa5 {[%clk 0:02:42]} 13. O-O {[%clk 0:02:15]}  Qxe5 {[%clk 0:02:36]} 14. Re1 {[%clk 0:02:05]}  Qxe4 {[%clk 0:02:33]} 15. Rxe4 {[%clk 0:02:04]}  Bd7 {[%clk 0:02:30]} 16. Ba3 {[%clk 0:02:01]}  Rfd8 {[%clk 0:02:27]} 17. Bd6 {[%clk 0:01:59]}  Na5 {[%clk 0:02:22]} 18. c5 {[%clk 0:01:56]}  Rdc8 {[%clk 0:02:13]} 19. Rb1 {[%clk 0:01:50]}  Bc6 {[%clk 0:02:00]} 20. Nxc6 {[%clk 0:01:48]}  Rxc6 {[%clk 0:01:58]} 21. Ra4 {[%clk 0:01:38]}  b6 {[%clk 0:01:55]} 22. cxb6 {[%clk 0:01:34]}  axb6 {[%clk 0:01:51]} 23. Bb4 {[%clk 0:01:33]}  Rc4 {[%clk 0:01:39]} 24. Ra3 {[%clk 0:01:28]}  h6 {[%clk 0:01:32]} 25. Bxa5 {[%clk 0:01:23]}  Rxa5 {[%clk 0:01:24]} 26. Rxa5 {[%clk 0:01:22]}  bxa5 {[%clk 0:01:24]} 27. Rc1 {[%clk 0:01:21]}  Kf8 {[%clk 0:01:18]} 28. Kf1 {[%clk 0:01:20]}  Ke7 {[%clk 0:01:18]} 29. Ke2 {[%clk 0:01:21]}  Kd6 {[%clk 0:01:19]} 30. Kd3 {[%clk 0:01:21]}  Ra4 {[%clk 0:01:04]} 31. Rc2 {[%clk 0:01:19]}  Kc5 {[%clk 0:01:03]} 32. Rb2 {[%clk 0:01:19]}  e5 {[%clk 0:00:58]} 33. f3 {[%clk 0:01:19]}  f5 {[%clk 0:00:53]} 34. Re2 {[%clk 0:01:07]}  Kd5 {[%clk 0:00:51]} 35. c4+ {[%clk 0:00:58]}  Kd6 {[%clk 0:00:49]} 36. Rb2 {[%clk 0:00:43]}  Ra3+ {[%clk 0:00:46]} 37. Rb3 {[%clk 0:00:32]}  Rxa2 {[%clk 0:00:44]} 38. Rb6+ {[%clk 0:00:32]}  Ke7 {[%clk 0:00:36]} 39. c5 {[%clk 0:00:26]}  Rxg2 {[%clk 0:00:31]} 40. Kc4 {[%clk 0:00:27]}  e4 {[%clk 0:00:26]} 41. fxe4 {[%clk 0:00:26]}  fxe4 {[%clk 0:00:26]} 42. Kd5 {[%clk 0:00:26]}  e3 {[%clk 0:00:23]} 43. Re6+ {[%clk 0:00:26]}  Kf7 {[%clk 0:00:20]} 44. Rxe3 {[%clk 0:00:26]}  Rxh2 {[%clk 0:00:18]} 45. c6 {[%clk 0:00:26]}  Rc2 {[%clk 0:00:16]} 46. Kd6 {[%clk 0:00:26]}  g5 {[%clk 0:00:10]} 47. c7 {[%clk 0:00:26]}  Kg6 {[%clk 0:00:08]} 48. Kd7 {[%clk 0:00:25]}  g4 {[%clk 0:00:07]} 49. Re6+ {[%clk 0:00:25]}  Kf5 {[%clk 0:00:03]} 50. Rc6 {[%clk 0:00:25]}  Rd2+ {[%clk 0:00:03]} 51. Ke7 {[%clk 0:00:24]}  Re2+ {[%clk 0:00:03]} 52. Kf7 {[%clk 0:00:25]} 1-0


[Site "https://www.chess.com"]

[Event "Titled Tuesday Blitz March 28 Early 2023"]
[White "Winkels, Marcel"]
[Black "Balague Camps, Marc"]
[WhiteFideId "1003887"]
[BlackFideId "2297914"]
[WhiteElo "1900"]
[BlackElo "2089"]
[Result "0-1"]
[Round "09"]
[TimeControl "180+2"]
[Date "2023.03.28"]
[WhiteClock "0:01:11"]
[BlackClock "0:02:31"]

1. d4 {[%clk 0:03:00]}  Nf6 {[%clk 0:02:59]} 2. Bf4 {[%clk 0:02:59]}  d5 {[%clk 0:02:57]} 3. e3 {[%clk 0:02:58]}  c5 {[%clk 0:02:57]} 4. Nf3 {[%clk 0:02:55]}  e6 {[%clk 0:02:58]} 5. c3 {[%clk 0:02:54]}  Bd6 {[%clk 0:02:58]} 6. Bg3 {[%clk 0:02:52]}  O-O {[%clk 0:02:59]} 7. Nbd2 {[%clk 0:02:52]}  b6 {[%clk 0:02:58]} 8. Bd3 {[%clk 0:02:47]}  Ba6 {[%clk 0:02:58]} 9. Qc2 {[%clk 0:02:36]}  Bxd3 {[%clk 0:02:57]} 10. Qxd3 {[%clk 0:02:36]}  Nc6 {[%clk 0:02:58]} 11. O-O {[%clk 0:02:34]}  Rc8 {[%clk 0:02:55]} 12. Ne5 {[%clk 0:02:32]}  Ne7 {[%clk 0:02:55]} 13. f4 {[%clk 0:02:26]}  Nf5 {[%clk 0:02:55]} 14. Bf2 {[%clk 0:02:20]}  Be7 {[%clk 0:02:55]} 15. g4 {[%clk 0:02:14]}  Nd6 {[%clk 0:02:56]} 16. g5 {[%clk 0:02:15]}  Nfe4 {[%clk 0:02:56]} 17. Nxe4 {[%clk 0:02:01]}  Nxe4 {[%clk 0:02:54]} 18. Be1 {[%clk 0:01:54]}  Kh8 {[%clk 0:02:53]} 19. Rf3 {[%clk 0:01:49]}  f6 {[%clk 0:02:52]} 20. gxf6 {[%clk 0:01:45]}  gxf6 {[%clk 0:02:52]} 21. Ng4 {[%clk 0:01:43]}  Rg8 {[%clk 0:02:49]} 22. h3 {[%clk 0:01:30]}  f5 {[%clk 0:02:47]} 23. Kf1 {[%clk 0:01:17]}  fxg4 {[%clk 0:02:46]} 24. hxg4 {[%clk 0:01:17]}  Rxg4 {[%clk 0:02:46]} 25. Ke2 {[%clk 0:01:18]}  c4 {[%clk 0:02:39]} 26. Qd1 {[%clk 0:01:16]}  Qg8 {[%clk 0:02:32]} 27. Bf2 {[%clk 0:01:16]}  Rg2 {[%clk 0:02:31]} 28. Qh1 {[%clk 0:01:14]}  Qg4 {[%clk 0:02:30]} 29. Rf1 {[%clk 0:01:11]}  Ng3+ {[%clk 0:02:31]} 0-1


[Site "https://www.chess.com"]

[Event "Titled Tuesday Blitz March 28 Early 2023"]
[White "Carrasco Miranda, Andres"]
[Black "Tagliata"]
[WhiteFideId "3405990"]
[WhiteElo "2183"]
[BlackElo "2216"]
[Result "0-1"]
[Round "09"]
[TimeControl "180+2"]
[Date "2023.03.28"]
[WhiteClock "0:00:02"]
[BlackClock "0:00:34"]

1. d4 {[%clk 0:03:00]}  d5 {[%clk 0:02:56]} 2. c4 {[%clk 0:02:48]}  c6 {[%clk 0:02:56]} 3. Nf3 {[%clk 0:02:48]}  Nf6 {[%clk 0:02:55]} 4. e3 {[%clk 0:02:49]}  e6 {[%clk 0:02:55]} 5. b3 {[%clk 0:02:48]}  Nbd7 {[%clk 0:02:52]} 6. Bd3 {[%clk 0:02:48]}  Ne4 {[%clk 0:02:49]} 7. O-O {[%clk 0:02:47]}  f5 {[%clk 0:02:47]} 8. Ba3 {[%clk 0:02:46]}  Bxa3 {[%clk 0:02:44]} 9. Nxa3 {[%clk 0:02:47]}  O-O {[%clk 0:02:44]} 10. Qc2 {[%clk 0:02:47]}  Ndf6 {[%clk 0:02:43]} 11. Nb1 {[%clk 0:02:48]}  Qe8 {[%clk 0:02:42]} 12. Nc3 {[%clk 0:02:47]}  Qh5 {[%clk 0:02:42]} 13. Ne2 {[%clk 0:02:46]}  g5 {[%clk 0:02:42]} 14. Ng3 {[%clk 0:02:42]}  Nxg3 {[%clk 0:02:30]} 15. hxg3 {[%clk 0:02:42]}  Ng4 {[%clk 0:02:26]} 16. b4 {[%clk 0:02:31]}  Rf6 {[%clk 0:02:25]} 17. Rfb1 {[%clk 0:02:02]}  Rh6 {[%clk 0:02:23]} 18. Kf1 {[%clk 0:02:01]}  Qh1+ {[%clk 0:02:19]} 19. Ng1 {[%clk 0:01:52]}  Rh2 {[%clk 0:02:11]} 20. Ke2 {[%clk 0:01:00]}  Qxg2 {[%clk 0:02:05]} 21. Rf1 {[%clk 0:00:56]}  Nxf2 {[%clk 0:01:42]} 22. Ke1 {[%clk 0:00:42]}  Qxg3 {[%clk 0:01:17]} 23. Rxf2 {[%clk 0:00:36]}  Qxg1+ {[%clk 0:01:17]} 24. Bf1 {[%clk 0:00:37]}  Qxf2+ {[%clk 0:01:03]} 25. Qxf2 {[%clk 0:00:38]}  Rxf2 {[%clk 0:01:03]} 26. Kxf2 {[%clk 0:00:37]}  Kg7 {[%clk 0:01:03]} 27. b5 {[%clk 0:00:36]}  Bd7 {[%clk 0:00:59]} 28. bxc6 {[%clk 0:00:35]}  Bxc6 {[%clk 0:01:00]} 29. c5 {[%clk 0:00:35]}  Kf6 {[%clk 0:01:00]} 30. Bd3 {[%clk 0:00:34]}  h5 {[%clk 0:00:59]} 31. a4 {[%clk 0:00:30]}  h4 {[%clk 0:00:59]} 32. a5 {[%clk 0:00:30]}  a6 {[%clk 0:00:58]} 33. Rb1 {[%clk 0:00:27]}  g4 {[%clk 0:00:55]} 34. Rb6 {[%clk 0:00:27]}  Kg5 {[%clk 0:00:48]} 35. Bf1 {[%clk 0:00:24]}  g3+ {[%clk 0:00:45]} 36. Kg2 {[%clk 0:00:24]}  Kg4 {[%clk 0:00:45]} 37. Be2+ {[%clk 0:00:24]}  Kg5 {[%clk 0:00:46]} 38. Kh3 {[%clk 0:00:24]}  f4 {[%clk 0:00:45]} 39. exf4+ {[%clk 0:00:22]}  Kxf4 {[%clk 0:00:46]} 40. Rb3 {[%clk 0:00:18]}  e5 {[%clk 0:00:40]} 41. dxe5 {[%clk 0:00:15]}  Bd7+ {[%clk 0:00:40]} 42. Kxh4 {[%clk 0:00:14]}  Rh8+ {[%clk 0:00:40]} 43. Bh5 {[%clk 0:00:14]}  Be8 {[%clk 0:00:39]} 44. Rf3+ {[%clk 0:00:13]}  Ke4 {[%clk 0:00:39]} 45. Rxg3 {[%clk 0:00:04]}  Rxh5+ {[%clk 0:00:38]} 46. Kg4 {[%clk 0:00:04]}  Rh8 {[%clk 0:00:36]} 47. Rb3 {[%clk 0:00:02]}  Bc6 {[%clk 0:00:35]} 48. e6 {[%clk 0:00:02]}  Re8 {[%clk 0:00:35]} 49. Rb1 {[%clk 0:00:02]}  Kd4 {[%clk 0:00:34]} 50. Kf5 {[%clk 0:00:02]}  Kxc5 {[%clk 0:00:33]} 51. Kf6 {[%clk 0:00:02]}  Kd6 {[%clk 0:00:34]} 0-1


[Site "https://www.chess.com"]

[Event "Titled Tuesday Blitz March 28 Early 2023"]
[White "Kuchava, Ana"]
[Black "Zampronha, Wladimir Camilo"]
[WhiteFideId "13605348"]
[BlackFideId "2103087"]
[WhiteElo "2001"]
[BlackElo "2176"]
[Result "0-1"]
[Round "09"]
[TimeControl "180+2"]
[Date "2023.03.28"]
[WhiteClock "0:02:23"]
[BlackClock "0:02:42"]

1. d4 {[%clk 0:02:56]}  Nf6 {[%clk 0:02:59]} 2. Nf3 {[%clk 0:02:51]}  e6 {[%clk 0:02:58]} 3. c4 {[%clk 0:02:49]}  b6 {[%clk 0:02:57]} 4. a3 {[%clk 0:02:48]}  Bb7 {[%clk 0:02:56]} 5. Nc3 {[%clk 0:02:47]}  Be7 {[%clk 0:02:52]} 6. d5 {[%clk 0:02:43]}  O-O {[%clk 0:02:48]} 7. e4 {[%clk 0:02:40]}  exd5 {[%clk 0:02:48]} 8. cxd5 {[%clk 0:02:39]}  c6 {[%clk 0:02:47]} 9. d6 {[%clk 0:02:37]}  Re8 {[%clk 0:02:45]} 10. dxe7 {[%clk 0:02:36]}  Qxe7 {[%clk 0:02:46]} 11. Bd3 {[%clk 0:02:35]}  d5 {[%clk 0:02:46]} 12. e5 {[%clk 0:02:35]}  Ng4 {[%clk 0:02:45]} 13. O-O {[%clk 0:02:33]}  Nxe5 {[%clk 0:02:45]} 14. Nxe5 {[%clk 0:02:33]}  Qxe5 {[%clk 0:02:46]} 15. Re1 {[%clk 0:02:34]}  Qxe1+ {[%clk 0:02:45]} 16. Qxe1 {[%clk 0:02:23]}  Rxe1+ {[%clk 0:02:43]} 17. Bf1 {[%clk 0:02:23]}  Ba6 {[%clk 0:02:42]} 0-1


[Site "https://www.chess.com"]

[Event "Titled Tuesday Blitz March 28 Early 2023"]
[White "Alahakoon, Isuru"]
[Black "Ramirez, Maria Eugenia"]
[WhiteFideId "9900993"]
[BlackFideId "3301680"]
[WhiteElo "1995"]
[BlackElo "1842"]
[Result "1-0"]
[Round "09"]
[TimeControl "180+2"]
[Date "2023.03.28"]
[WhiteClock "0:00:09"]
[BlackClock "0:00:03"]

1. Nf3 {[%clk 0:03:00]}  Nf6 {[%clk 0:02:59]} 2. d4 {[%clk 0:03:00]}  e6 {[%clk 0:02:56]} 3. Bf4 {[%clk 0:02:53]}  d5 {[%clk 0:02:53]} 4. e3 {[%clk 0:02:45]}  Bd6 {[%clk 0:02:52]} 5. Bg3 {[%clk 0:02:42]}  Bxg3 {[%clk 0:02:50]} 6. hxg3 {[%clk 0:02:41]}  c5 {[%clk 0:02:50]} 7. c3 {[%clk 0:02:38]}  cxd4 {[%clk 0:02:48]} 8. exd4 {[%clk 0:02:37]}  Nc6 {[%clk 0:02:46]} 9. Bd3 {[%clk 0:02:35]}  Bd7 {[%clk 0:02:40]} 10. Nbd2 {[%clk 0:02:35]}  Qb6 {[%clk 0:02:39]} 11. Rb1 {[%clk 0:02:31]}  h6 {[%clk 0:02:36]} 12. Qe2 {[%clk 0:02:28]}  Rc8 {[%clk 0:02:19]} 13. Ne5 {[%clk 0:02:26]}  Nxe5 {[%clk 0:02:15]} 14. dxe5 {[%clk 0:02:26]}  Ng8 {[%clk 0:02:09]} 15. Qg4 {[%clk 0:02:20]}  Kf8 {[%clk 0:02:02]} 16. O-O {[%clk 0:02:15]}  Ne7 {[%clk 0:01:55]} 17. Nf3 {[%clk 0:02:14]}  Bb5 {[%clk 0:01:40]} 18. Bxb5 {[%clk 0:02:11]}  Qxb5 {[%clk 0:01:39]} 19. Nd4 {[%clk 0:02:12]}  Qc4 {[%clk 0:01:25]} 20. Qf4 {[%clk 0:01:47]}  Ke8 {[%clk 0:01:24]} 21. b3 {[%clk 0:01:46]}  Qc7 {[%clk 0:01:17]} 22. Nb5 {[%clk 0:01:44]}  Qc6 {[%clk 0:00:56]} 23. Nd6+ {[%clk 0:01:36]}  Kd7 {[%clk 0:00:56]} 24. Nxc8 {[%clk 0:01:25]}  Rxc8 {[%clk 0:00:55]} 25. c4 {[%clk 0:01:20]}  Rf8 {[%clk 0:00:47]} 26. Rbc1 {[%clk 0:01:11]}  Qa6 {[%clk 0:00:41]} 27. Qd2 {[%clk 0:01:03]}  Qb6 {[%clk 0:00:30]} 28. Qb2 {[%clk 0:00:53]}  f6 {[%clk 0:00:28]} 29. exf6 {[%clk 0:00:51]}  Rxf6 {[%clk 0:00:28]} 30. Qe5 {[%clk 0:00:46]}  Nc6 {[%clk 0:00:24]} 31. Qe2 {[%clk 0:00:40]}  Nd4 {[%clk 0:00:19]} 32. Qg4 {[%clk 0:00:40]}  g5 {[%clk 0:00:16]} 33. c5 {[%clk 0:00:40]}  Qb4 {[%clk 0:00:11]} 34. a3 {[%clk 0:00:37]}  Qd2 {[%clk 0:00:09]} 35. Rcd1 {[%clk 0:00:27]}  Ne2+ {[%clk 0:00:09]} 36. Kh2 {[%clk 0:00:27]}  Qb2 {[%clk 0:00:08]} 37. Rfe1 {[%clk 0:00:24]}  Nc3 {[%clk 0:00:08]} 38. Rd3 {[%clk 0:00:19]}  Rxf2 {[%clk 0:00:07]} 39. Qh3 {[%clk 0:00:19]}  Ne4 {[%clk 0:00:06]} 40. Rg1 {[%clk 0:00:17]}  g4 {[%clk 0:00:07]} 41. Qxh6 {[%clk 0:00:16]}  Kc6 {[%clk 0:00:07]} 42. Qxe6+ {[%clk 0:00:16]}  Kb5 {[%clk 0:00:06]} 43. Qxd5 {[%clk 0:00:16]}  Nxg3 {[%clk 0:00:06]} 44. Rxg3 {[%clk 0:00:14]}  Rd2 {[%clk 0:00:05]} 45. Qc4+ {[%clk 0:00:15]}  Ka5 {[%clk 0:00:05]} 46. b4+ {[%clk 0:00:14]}  Ka4 {[%clk 0:00:05]} 47. b5+ {[%clk 0:00:15]}  Ka5 {[%clk 0:00:05]} 48. Rb3 {[%clk 0:00:13]}  Qh8+ {[%clk 0:00:04]} 49. Kg3 {[%clk 0:00:12]}  Qb8+ {[%clk 0:00:05]} 50. Kh4 {[%clk 0:00:11]}  Qh8+ {[%clk 0:00:04]} 51. Kg5 {[%clk 0:00:10]}  Qg7+ {[%clk 0:00:04]} 52. Kf4 {[%clk 0:00:10]}  Rd4+ {[%clk 0:00:04]} 53. Qxd4 {[%clk 0:00:10]}  Qxd4+ {[%clk 0:00:04]} 54. Kg3 {[%clk 0:00:11]}  Qe5+ {[%clk 0:00:04]} 55. Kxg4 {[%clk 0:00:09]}  Qe6+ {[%clk 0:00:04]} 56. Kh4 {[%clk 0:00:09]}  Qxb3 {[%clk 0:00:05]} 57. g4 {[%clk 0:00:09]}  Qg8 {[%clk 0:00:04]} 58. Rg3 {[%clk 0:00:10]}  Kxb5 {[%clk 0:00:04]} 59. g5 {[%clk 0:00:11]}  Kxc5 {[%clk 0:00:05]} 60. g6 {[%clk 0:00:12]}  Qh8+ {[%clk 0:00:04]} 61. Kg5 {[%clk 0:00:11]}  Qe5+ {[%clk 0:00:04]} 62. Kh4 {[%clk 0:00:10]}  Qf4+ {[%clk 0:00:04]} 63. Rg4 {[%clk 0:00:11]}  Qh6+ {[%clk 0:00:04]} 64. Kg3 {[%clk 0:00:10]}  Qg7 {[%clk 0:00:04]} 65. Kf4 {[%clk 0:00:09]}  b5 {[%clk 0:00:04]} 66. Kg5 {[%clk 0:00:09]}  a5 {[%clk 0:00:05]} 67. Rf4 {[%clk 0:00:09]}  Qe5+ {[%clk 0:00:04]} 68. Rf5 {[%clk 0:00:09]}  Qxf5+ {[%clk 0:00:02]} 69. Kxf5 {[%clk 0:00:10]}  b4 {[%clk 0:00:03]} 70. g7 {[%clk 0:00:09]}  bxa3 {[%clk 0:00:03]} 71. g8=Q {[%clk 0:00:09]}  Kb4 {[%clk 0:00:03]} 72. Qa2 {[%clk 0:00:09]}  a4 {[%clk 0:00:03]} 73. Ke4 {[%clk 0:00:10]}  Kc3 {[%clk 0:00:03]} 74. Ke3 {[%clk 0:00:09]}  Kb4 {[%clk 0:00:03]} 75. Kd4 {[%clk 0:00:09]}  Ka5 {[%clk 0:00:03]} 76. Qxa3 {[%clk 0:00:09]} 1-0


[Site "https://www.chess.com"]